[Event "GER-ch Youth U16w 2019"]
[Site "Willingen"]
[Date "2019.06.15"]
[Round "9.1"]
[White "Fock, Amina"]
[Black "Brunner, Sophia"]
[Result "0-1"]
[ECO "B01"]
[WhiteElo "1723"]
[BlackElo "1839"]
[Annotator "NA"]
[PlyCount "97"]
[EventDate "2019.06.07"]
[EventType "swiss"]
[EventRounds "9"]
[EventCountry "GER"]
[SourceTitle "playchess.com"]
[Source "ChessBase"]
[SourceQuality "1"]
[TimeControl "40/5400+30:1800+30"]

1. e4 {[%emt 0:00:00]} d5 {[%emt 0:00:00]} 2. exd5 {[%emt 0:00:00]} Qxd5 {[%emt 0:00:00]} 3. Nc3 {[%emt 0:00:00]} Qd8 {[%emt 0:00:00]} 4. d4 {[%emt 0:00:53]} Nf6 {[%emt 0:00:00]} 5. Nf3 {[%emt 0:00:57]} Bg4 {[%emt 0:00:01]} 6. Be2 {[%emt 0:00:47]} e6 {[%emt 0:00:16]} 7. h3 {[%emt 0:01:24]} Bh5 {[%emt 0:03:07]} 8. g4 {[%emt 0:04:23]} Bg6 {[%emt 0:00:29]} 9. Ne5 {[%emt 0:00:46]} Be4 {[%emt 0:08:11]} 10. Nxe4 {[%emt 0:08:50]} Nxe4 {[%emt 0:00:06]} 11. Bf3 {[%emt 0:00:45]} Nd6 {[%emt 0:02:26]} 12. Qe2 {[%emt 0:00:56]} c6 {[%emt 0:01:06]} 13. c3 {[%emt 0:05:59]} Nd7 {[%emt 0:08:26]} 14. Nxd7 {[%emt 0:08:54]} Qxd7 {[%emt 0:00:07]} 15. d5 {[%emt 0:00:36]} cxd5 {[%emt 0:00:45]} 16. Bxd5 {[%emt 0:00:38]} Be7 {[%emt 0:01:45]} 17. Bg2 {[%emt 0:00:32]} Rd8 {[%emt 0:11:31]} 18. Be3 {[%emt 0:04:28]} b6 {[%emt 0:02:45]} 19. a4 {[%emt 0:06:22]} Qc7 {[%emt 0:04:04]} 20. Bd4 {[%emt 0:06:23]} Bf6 {[%emt 0:06:56]} 21. Bxf6 {[%emt 0:05:55]} gxf6 {[%emt 0:00:07]} 22. Qf3 {[%emt 0:01:02]} Ke7 {[%emt 0:09:42]} 23. Qf4 {[%emt 0:06:23]} Qc4 {[%emt 0:01:52]} 24. Qxc4 {[%emt 0:07:27]} Nxc4 {[%emt 0:00:05]} 25. b4 {[%emt 0:01:52]} Rd3 {[%emt 0:15:41]} 26. Rc1 {[%emt 0:01:07]} Nb2 {[%emt 0:06:06]} 27. Bf1 {[%emt 0:02:40]} Rd6 {[%emt 0:01:09]} 28. c4 {[%emt 0:09:20]} Rhd8 {[%emt 0:03:50]} 29. Be2 {[%emt 0:00:43]} Nxa4 {[%emt 0:07:04]} 30. Ra1 {[%emt 0:00:56]} Nc3 {[%emt 0:00:16]} 31. Rxa7+ {[%emt 0:01:19]} Kf8 {[%emt 0:00:05]} 32. Ra1 {[%emt 0:00:27]} Rd2 {[%emt 0:03:03]} 33. Bf3 {[%emt 0:05:01]} e5 {[%emt 0:00:13]} 34. Bd5 {[%emt 0:03:36]} Rd4 {[%emt 0:01:14]} 35. O-O {[%emt 0:02:06]} Nxd5 {[%emt 0:00:22]} 36. cxd5 {[%emt 0:00:06]} R8xd5 {[%emt 0:00:33]} 37. Rfb1 {[%emt 0:02:05]} Rc4 {[%emt 0:02:04]} 38. Ra2 {[%emt 0:01:47]} Rb5 {[%emt 0:01:27]} 39. Rab2 {[%emt 0:00:42]} Ke7 {[%emt 0:00:28]} 40. Kg2 {[%emt 0:00:54]} Ke6 {[%emt 0:01:03]} 41. Kg3 {[%emt 0:04:23]} f5 {[%emt 0:02:56]} 42. f3 {[%emt 0:06:45]} f4+ {[%emt 0:05:20]} 43. Kf2 {[%emt 0:01:16]} f5 {[%emt 0:00:26]} 44. gxf5+ {[%emt 0:00:56]} Kxf5 {[%emt 0:00:06]} 45. Kg2 {[%emt 0:01:27]} e4 {[%emt 0:01:17]} 46. fxe4+ {[%emt 0:00:14]} Kxe4 {[%emt 0:03:52]} 47. Kf2 {[%emt 0:01:20]} Rc3 {[%emt 0:04:13]} 48. Rh1 {[%emt 0:02:17]} Kd4 {[%emt 0:03:21]} 49. Kg2 {[%emt 0:02:11] normal} 0-1

[Event "GER-ch Youth U16w 2019"]
[Site "Willingen"]
[Date "2019.06.15"]
[Round "9.2"]
[White "Khamenya, Vitalia"]
[Black "Bardorz, Jana"]
[Result "0-1"]
[ECO "E98"]
[WhiteElo "1877"]
[BlackElo "1769"]
[Annotator "NA"]
[PlyCount "88"]
[EventDate "2019.06.07"]
[EventType "swiss"]
[EventRounds "9"]
[EventCountry "GER"]
[SourceTitle "playchess.com"]
[Source "ChessBase"]
[SourceQuality "1"]
[TimeControl "40/5400+30:1800+30"]

1. d4 {[%emt 0:00:00]} Nf6 {[%emt 0:00:00]} 2. Nf3 {[%emt 0:00:00]} g6 {[%emt 0:00:00]} 3. c4 {[%emt 0:00:00]} Bg7 {[%emt 0:00:00]} 4. Nc3 {[%emt 0:00:00]} O-O {[%emt 0:00:11]} 5. e4 {[%emt 0:00:00]} d6 {[%emt 0:00:06]} 6. Be2 {[%emt 0:00:03]} e5 {[%emt 0:01:10]} 7. O-O {[%emt 0:00:06]} Nc6 {[%emt 0:00:28]} 8. d5 {[%emt 0:00:07]} Ne7 {[%emt 0:00:18]} 9. Ne1 {[%emt 0:00:15]} Nd7 {[%emt 0:03:19]} 10. Be3 {[%emt 0:00:08]} f5 {[%emt 0:01:18]} 11. f3 {[%emt 0:00:05]} f4 {[%emt 0:02:01]} 12. Bf2 {[%emt 0:00:03]} g5 {[%emt 0:04:46]} 13. a4 {[%emt 0:00:05]} h5 {[%emt 0:08:52]} 14. a5 {[%emt 0:00:40]} a6 {[%emt 0:05:17]} 15. b4 {[%emt 0:02:45]} Nf6 {[%emt 0:02:38]} 16. c5 {[%emt 0:01:25]} g4 {[%emt 0:05:44]} 17. cxd6 {[%emt 0:07:53]} cxd6 {[%emt 0:02:15]} 18. Na4 {[%emt 0:02:40]} gxf3 {[%emt 0:07:12]} 19. Bxf3 {[%emt 0:00:40]} Bg4 {[%emt 0:04:12]} 20. Bb6 {[%emt 0:18:53]} Qe8 {[%emt 0:03:39]} 21. Bc7 {[%emt 0:18:59]} Nxe4 {[%emt 0:05:59]} 22. Bxg4 {[%emt 0:00:18]} hxg4 {[%emt 0:01:22]} 23. Qxg4 {[%emt 0:00:54]} Nxd5 {[%emt 0:02:17]} 24. Bb6 {[%emt 0:08:52]} Nxb4 {[%emt 0:06:22]} 25. Qe2 {[%emt 0:02:45]} Qc6 {[%emt 0:05:50]} 26. Nd3 {[%emt 0:03:01]} Nc3 {[%emt 0:05:04]} 27. Nxc3 {[%emt 0:01:51]} Qxc3 {[%emt 0:00:07]} 28. Nxb4 {[%emt 0:00:11]} Qxb4 {[%emt 0:00:11]} 29. Qa2+ {[%emt 0:00:09]} Rf7 {[%emt 0:04:02]} 30. Rac1 {[%emt 0:03:50]} Kf8 {[%emt 0:04:18]} 31. Rc4 {[%emt 0:01:09]} Qb5 {[%emt 0:00:36]} 32. Rfc1 {[%emt 0:01:39]} Qe8 {[%emt 0:02:15]} 33. Qa3 {[%emt 0:04:52]} Qe6 {[%emt 0:03:57]} 34. Bc7 {[%emt 0:01:40]} Rd7 {[%emt 0:01:51]} 35. Qb4 {[%emt 0:00:43]} Qd5 {[%emt 0:05:49]} 36. Qa4 {[%emt 0:03:44]} Ke7 {[%emt 0:01:34]} 37. Rd1 {[%emt 0:06:31]} Qe6 {[%emt 0:02:04]} 38. Qb4 {[%emt 0:02:18]} Bf8 {[%emt 0:00:55]} 39. Rcc1 {[%emt 0:04:21]} Kf6 {[%emt 0:00:35]} 40. Qxb7 {[%emt 0:01:17]} Qe8 {[%emt 0:00:33]} 41. Rc6 {[%emt 0:17:40]} Kg7 {[%emt 0:09:52]} 42. Rdc1 {[%emt 0:04:09]} Kg8 {[%emt 0:07:53]} 43. Rxa6 {[%emt 0:02:58]} Rxa6 {[%emt 0:00:07]} 44. Qxa6 {[%emt 0:00:03]} e4 {[%emt 0:02:09] normal} 0-1

[Event "GER-ch Youth U16w 2019"]
[Site "Willingen"]
[Date "2019.06.15"]
[Round "9.3"]
[White "Basovskiy, Jana"]
[Black "Muedder, Melanie"]
[Result "0-1"]
[ECO "B30"]
[WhiteElo "1761"]
[BlackElo "1912"]
[Annotator "NA"]
[PlyCount "56"]
[EventDate "2019.06.07"]
[EventType "swiss"]
[EventRounds "9"]
[EventCountry "GER"]
[SourceTitle "playchess.com"]
[Source "ChessBase"]
[SourceQuality "1"]
[TimeControl "40/5400+30:1800+30"]

1. e4 {[%emt 0:00:00]} c5 {[%emt 0:00:00]} 2. Nf3 {[%emt 0:00:00]} Nc6 {[%emt 0:00:00]} 3. d3 {[%emt 0:00:00]} d6 {[%emt 0:00:16]} 4. g3 {[%emt 0:00:10]} g6 {[%emt 0:00:33]} 5. Bg2 {[%emt 0:00:08]} Bg7 {[%emt 0:00:18]} 6. O-O {[%emt 0:01:16]} e5 {[%emt 0:02:43]} 7. Nc3 {[%emt 0:07:58]} Be6 {[%emt 0:02:29]} 8. Nd2 {[%emt 0:05:56]} Nge7 {[%emt 0:03:17]} 9. Nc4 {[%emt 0:08:26]} d5 {[%emt 0:06:19]} 10. exd5 Nxd5 {[%emt 0:00:48]} 11. Ne4 {[%emt 0:01:52]} Bf8 {[%emt 0:12:01]} 12. Re1 {[%emt 0:12:32]} Be7 {[%emt 0:11:32]} 13. Bh6 {[%emt 0:01:28]} f5 {[%emt 0:08:05]} 14. Ned2 {[%emt 0:02:34]} Bf6 {[%emt 0:03:56]} 15. f4 {[%emt 0:02:52]} Qd7 {[%emt 0:13:00]} 16. fxe5 {[%emt 0:01:09]} Be7 {[%emt 0:03:35]} 17. Nf3 {[%emt 0:23:54]} O-O-O 18. Qd2 {[%emt 0:13:27]} f4 {[%emt 0:13:23]} 19. Bxf4 {[%emt 0:00:30]} Nxf4 {[%emt 0:01:07]} 20. Qxf4 {[%emt 0:01:48]} Rhf8 {[%emt 0:03:15]} 21. Qe4 {[%emt 0:05:36]} Bf5 {[%emt 0:01:04]} 22. Qe2 {[%emt 0:03:01]} Bg4 23. Rf1 Nd4 24. Qd1 {[%emt 0:00:16]} Nxf3+ {[%emt 0:11:20]} 25. Bxf3 {[%emt 0:00:20]} Rxf3 {[%emt 0:01:12]} 26. Rxf3 {[%emt 0:00:18]} Qd5 {[%emt 0:01:29]} 27. Nd2 {[%emt 0:02:56]} Qd4+ 28. Kg2 Qxe5 {[%emt 0:01:35] normal} 0-1

[Event "GER-ch Youth U16w 2019"]
[Site "Willingen"]
[Date "2019.06.15"]
[Round "9.4"]
[White "Wagner, Victoria"]
[Black "Rothenberg, Nina"]
[Result "1/2-1/2"]
[ECO "C06"]
[WhiteElo "1808"]
[BlackElo "1653"]
[Annotator "NA"]
[PlyCount "59"]
[EventDate "2019.06.07"]
[EventType "swiss"]
[EventRounds "9"]
[EventCountry "GER"]
[SourceTitle "playchess.com"]
[Source "ChessBase"]
[SourceQuality "1"]
[TimeControl "40/5400+30:1800+30"]

1. e4 {[%emt 0:00:00]} e6 {[%emt 0:00:00]} 2. d4 {[%emt 0:00:00]} d5 {[%emt 0:00:00]} 3. Nd2 {[%emt 0:00:00]} Nf6 {[%emt 0:00:00]} 4. e5 {[%emt 0:00:00]} Nfd7 {[%emt 0:00:00]} 5. Bd3 {[%emt 0:00:13]} c5 {[%emt 0:00:00]} 6. c3 {[%emt 0:00:12]} Nc6 {[%emt 0:00:00]} 7. Ne2 {[%emt 0:00:15]} cxd4 {[%emt 0:00:00]} 8. cxd4 {[%emt 0:00:05]} f6 {[%emt 0:00:02]} 9. exf6 {[%emt 0:03:06]} Nxf6 {[%emt 0:00:07]} 10. O-O {[%emt 0:01:12]} Bd6 {[%emt 0:00:37]} 11. Nf3 {[%emt 0:00:50]} Qc7 {[%emt 0:00:23]} 12. h3 {[%emt 0:03:32]} O-O {[%emt 0:02:31]} 13. Be3 {[%emt 0:06:13]} e5 {[%emt 0:05:18]} 14. dxe5 {[%emt 0:03:40]} Nxe5 {[%emt 0:00:13]} 15. Nxe5 {[%emt 0:01:29]} Bxe5 {[%emt 0:00:29]} 16. Qd2 {[%emt 0:06:21]} Ne4 {[%emt 0:05:15]} 17. Bxe4 {[%emt 0:11:15]} dxe4 {[%emt 0:00:10]} 18. Qd5+ {[%emt 0:06:31]} Kh8 {[%emt 0:01:39]} 19. Rac1 {[%emt 0:00:50]} Qd6 {[%emt 0:03:27]} 20. Qxd6 {[%emt 0:00:29]} Bxd6 {[%emt 0:00:19]} 21. Bc5 {[%emt 0:00:56]} Bxc5 {[%emt 0:01:12]} 22. Rxc5 {[%emt 0:02:20]} Bd7 {[%emt 0:05:01]} 23. Ng3 {[%emt 0:03:32]} Bc6 {[%emt 0:01:22]} 24. Re1 {[%emt 0:02:45]} Rfe8 {[%emt 0:12:03]} 25. Rc2 {[%emt 0:02:49]} Rad8 {[%emt 0:03:51]} 26. Rce2 {[%emt 0:02:36]} h6 {[%emt 0:01:12]} 27. Nxe4 {[%emt 0:02:21]} Rxe4 {[%emt 0:00:40]} 28. Rxe4 {[%emt 0:00:12]} Bxe4 {[%emt 0:00:04]} 29. Rxe4 {[%emt 0:00:13]} Rd1+ {[%emt 0:00:07]} 30. Kh2 {[%emt 0:00:14] normal} 1/2-1/2

[Event "GER-ch Youth U16w 2019"]
[Site "Willingen"]
[Date "2019.06.15"]
[Round "9.5"]
[White "Glinzner, Alva"]
[Black "Berelowitsch, Dana"]
[Result "1-0"]
[ECO "A08"]
[WhiteElo "1833"]
[BlackElo "1753"]
[Annotator "NA"]
[PlyCount "86"]
[EventDate "2019.06.07"]
[EventType "swiss"]
[EventRounds "9"]
[EventCountry "GER"]
[SourceTitle "playchess.com"]
[Source "ChessBase"]
[SourceQuality "1"]
[TimeControl "40/5400+30:1800+30"]

1. e4 {[%emt 0:00:00]} e6 {[%emt 0:00:00]} 2. d3 {[%emt 0:00:00]} d5 {[%emt 0:00:00]} 3. Nd2 {[%emt 0:00:00]} c5 {[%emt 0:06:20]} 4. g3 {[%emt 0:01:10]} Nc6 {[%emt 0:00:37]} 5. Bg2 {[%emt 0:01:32]} Nf6 {[%emt 0:03:46]} 6. Ngf3 {[%emt 0:00:33]} Be7 {[%emt 0:00:38]} 7. O-O {[%emt 0:00:25]} O-O {[%emt 0:00:34]} 8. Re1 {[%emt 0:00:47]} Qc7 {[%emt 0:04:39]} 9. Qe2 {[%emt 0:04:19]} d4 {[%emt 0:03:41]} 10. e5 {[%emt 0:02:56]} Nd5 {[%emt 0:01:34]} 11. h4 {[%emt 0:02:39]} Rd8 {[%emt 0:12:13]} 12. Nf1 {[%emt 0:07:23]} f6 {[%emt 0:01:39]} 13. N1h2 {[%emt 0:04:00]} fxe5 {[%emt 0:02:55]} 14. Ng4 {[%emt 0:04:43]} Nf6 {[%emt 0:08:16]} 15. Ngxe5 {[%emt 0:01:09]} Nxe5 {[%emt 0:00:51]} 16. Nxe5 {[%emt 0:00:24]} Bd6 {[%emt 0:06:36]} 17. Nc4 {[%emt 0:01:53]} Re8 {[%emt 0:07:00]} 18. Nxd6 {[%emt 0:09:00]} Qxd6 {[%emt 0:00:22]} 19. Bf4 {[%emt 0:00:35]} Qb6 {[%emt 0:00:45]} 20. c3 {[%emt 0:00:49]} Bd7 {[%emt 0:01:02]} 21. Be5 {[%emt 0:01:25]} Rf8 {[%emt 0:02:22]} 22. Rac1 {[%emt 0:02:11]} Rac8 {[%emt 0:00:45]} 23. b3 {[%emt 0:05:06]} Bc6 {[%emt 0:04:41]} 24. cxd4 {[%emt 0:02:38]} cxd4 {[%emt 0:00:54]} 25. Bh3 {[%emt 0:07:30]} Bd5 {[%emt 0:08:38]} 26. Bxd4 {[%emt 0:03:14]} Qa6 {[%emt 0:06:47]} 27. Rxc8 {[%emt 0:02:03]} Rxc8 {[%emt 0:00:27]} 28. Bxe6+ {[%emt 0:09:22]} Bxe6 {[%emt 0:00:53]} 29. Qxe6+ {[%emt 0:00:05]} Qxe6 {[%emt 0:00:20]} 30. Rxe6 {[%emt 0:00:02]} Rd8 {[%emt 0:03:51]} 31. Bxa7 {[%emt 0:02:08]} Rxd3 {[%emt 0:00:32]} 32. Re7 {[%emt 0:02:21]} b5 {[%emt 0:00:59]} 33. Re5 {[%emt 0:05:56]} Rd2 {[%emt 0:00:38]} 34. Rxb5 {[%emt 0:01:10]} Rxa2 {[%emt 0:00:15]} 35. Rb7 {[%emt 0:00:29]} Rb2 {[%emt 0:03:30]} 36. Bd4 {[%emt 0:04:06]} Rb1+ {[%emt 0:00:28]} 37. Kg2 {[%emt 0:00:09]} h6 {[%emt 0:01:45]} 38. b4 {[%emt 0:00:55]} Rb3 {[%emt 0:01:23]} 39. b5 {[%emt 0:01:36]} Rb4 {[%emt 0:00:49]} 40. Be3 {[%emt 0:02:14]} Nd5 {[%emt 0:00:31]} 41. b6 {[%emt 0:31:35]} Nxe3+ {[%emt 0:32:32]} 42. fxe3 {[%emt 0:00:05]} g5 {[%emt 0:01:24]} 43. hxg5 {[%emt 0:02:01]} hxg5 {[%emt 0:00:01] normal} 1-0

[Event "GER-ch Youth U16w 2019"]
[Site "Willingen"]
[Date "2019.06.15"]
[Round "9.6"]
[White "Bui, Ngoc Han Julia"]
[Black "Sokolowski, Judith"]
[Result "1/2-1/2"]
[ECO "B01"]
[WhiteElo "1973"]
[BlackElo "1749"]
[Annotator "NA"]
[PlyCount "67"]
[EventDate "2019.06.07"]
[EventType "swiss"]
[EventRounds "9"]
[EventCountry "GER"]
[SourceTitle "playchess.com"]
[Source "ChessBase"]
[SourceQuality "1"]
[TimeControl "40/5400+30:1800+30"]

1. e4 {[%emt 0:00:00]} d5 {[%emt 0:00:00]} 2. exd5 {[%emt 0:00:00]} Qxd5 {[%emt 0:00:00]} 3. Nc3 {[%emt 0:00:00]} Qd8 {[%emt 0:00:00]} 4. d4 {[%emt 0:00:00]} Nf6 {[%emt 0:00:00]} 5. Bc4 {[%emt 0:01:08]} a6 {[%emt 0:00:07]} 6. Nf3 {[%emt 0:01:19]} b5 {[%emt 0:00:49]} 7. Bb3 {[%emt 0:00:13]} c5 {[%emt 0:00:53]} 8. dxc5 {[%emt 0:03:36]} Qxd1+ {[%emt 0:00:08]} 9. Nxd1 {[%emt 0:00:33]} e6 {[%emt 0:00:41]} 10. a4 {[%emt 0:03:43]} b4 {[%emt 0:01:44]} 11. O-O {[%emt 0:06:40]} Bb7 {[%emt 0:04:04]} 12. Ne5 {[%emt 0:03:24]} Bxc5 {[%emt 0:03:29]} 13. Be3 {[%emt 0:07:58]} Nbd7 {[%emt 0:03:20]} 14. Nc4 {[%emt 0:10:22]} O-O {[%emt 0:12:37]} 15. Na5 {[%emt 0:18:12]} Bd5 {[%emt 0:12:12]} 16. Re1 {[%emt 0:08:19]} Rac8 {[%emt 0:06:27]} 17. Bxd5 {[%emt 0:03:14]} Nxd5 {[%emt 0:01:14]} 18. Nc4 {[%emt 0:02:32]} Be7 {[%emt 0:10:15]} 19. b3 {[%emt 0:01:44]} Bf6 {[%emt 0:05:54]} 20. Rc1 {[%emt 0:02:13]} Rc7 {[%emt 0:02:36]} 21. Bd2 {[%emt 0:07:12]} Nc5 {[%emt 0:06:59]} 22. Nde3 {[%emt 0:00:45]} Nxe3 {[%emt 0:09:09]} 23. Nxe3 {[%emt 0:01:27]} a5 {[%emt 0:02:40]} 24. Nc4 {[%emt 0:01:01]} Ra8 {[%emt 0:02:28]} 25. Bf4 {[%emt 0:00:04]} Rc6 {[%emt 0:01:48]} 26. Nd6 {[%emt 0:05:06]} e5 {[%emt 0:03:55]} 27. Bxe5 {[%emt 0:00:05]} Bxe5 {[%emt 0:00:17]} 28. Rxe5 {[%emt 0:00:11]} Nxb3 {[%emt 0:01:22]} 29. Rce1 {[%emt 0:00:28]} g6 {[%emt 0:01:57]} 30. cxb3 {[%emt 0:04:37]} Rxd6 {[%emt 0:00:05]} 31. g3 {[%emt 0:01:46]} Rd3 {[%emt 0:01:05]} 32. R1e3 {[%emt 0:00:21]} Rd1+ {[%emt 0:01:18]} 33. Kg2 {[%emt 0:00:22]} Rb1 {[%emt 0:01:06]} 34. h4 {[%emt 0:03:17] normal} 1/2-1/2

[Event "GER-ch Youth U16w 2019"]
[Site "Willingen"]
[Date "2019.06.15"]
[Round "9.7"]
[White "Huppert, Anna"]
[Black "Ziegenfuss, Larissa"]
[Result "0-1"]
[ECO "B23"]
[WhiteElo "1515"]
[BlackElo "1771"]
[Annotator "NA"]
[PlyCount "88"]
[EventDate "2019.06.07"]
[EventType "swiss"]
[EventRounds "9"]
[EventCountry "GER"]
[SourceTitle "playchess.com"]
[Source "ChessBase"]
[SourceQuality "1"]
[TimeControl "40/5400+30:1800+30"]

1. e4 {[%emt 0:00:00]} c5 {[%emt 0:00:00]} 2. Nc3 {[%emt 0:00:00]} Nc6 {[%emt 0:00:00]} 3. f4 {[%emt 0:00:00]} g6 {[%emt 0:00:05]} 4. Nf3 {[%emt 0:00:00]} Bg7 {[%emt 0:00:18]} 5. Bb5 {[%emt 0:00:13]} Nd4 {[%emt 0:00:46]} 6. Bc4 {[%emt 0:00:18]} e6 {[%emt 0:00:55]} 7. O-O {[%emt 0:01:18]} Ne7 {[%emt 0:00:38]} 8. Nxd4 {[%emt 0:11:32]} cxd4 {[%emt 0:00:28]} 9. Ne2 {[%emt 0:00:32]} O-O {[%emt 0:01:13]} 10. Kh1 d5 {[%emt 0:04:28]} 11. exd5 {[%emt 0:05:43]} Nxd5 12. c3 {[%emt 0:02:52]} Nb6 {[%emt 0:06:06]} 13. Bd3 {[%emt 0:02:15]} dxc3 {[%emt 0:07:53]} 14. dxc3 {[%emt 0:01:05]} Bd7 {[%emt 0:00:39]} 15. Qe1 {[%emt 0:05:00]} Bc6 16. Qg3 {[%emt 0:07:21]} f5 {[%emt 0:07:12]} 17. Bd2 {[%emt 0:04:17]} Qe7 {[%emt 0:07:19]} 18. Rad1 {[%emt 0:03:51]} Rad8 {[%emt 0:01:14]} 19. Be3 {[%emt 0:07:57]} Na4 {[%emt 0:03:00]} 20. Rd2 Nxb2 {[%emt 0:14:29]} 21. Bxa7 {[%emt 0:13:45]} Nxd3 22. Rxd3 {[%emt 0:00:33]} Qa3 {[%emt 0:02:30]} 23. Rxd8 {[%emt 0:04:02]} Rxd8 {[%emt 0:00:08]} 24. Bd4 {[%emt 0:00:53]} Qxa2 25. Qf2 {[%emt 0:03:49]} Bb5 {[%emt 0:10:47]} 26. Re1 {[%emt 0:02:07]} Bxd4 {[%emt 0:01:50]} 27. cxd4 {[%emt 0:00:23]} Rc8 {[%emt 0:01:29]} 28. Kg1 {[%emt 0:03:27]} Rc2 {[%emt 0:03:55]} 29. Kf1 {[%emt 0:00:15]} Rxe2 {[%emt 0:09:27]} 30. Rxe2 {[%emt 0:00:46]} Qa1+ {[%emt 0:01:45]} 31. Qe1 {[%emt 0:00:35]} Bxe2+ {[%emt 0:04:43]} 32. Kxe2 {[%emt 0:00:14]} Qxe1+ {[%emt 0:01:59]} 33. Kxe1 {[%emt 0:00:07]} Kf7 {[%emt 0:00:05]} 34. Kd2 {[%emt 0:00:14]} Ke7 {[%emt 0:00:08]} 35. Kc3 {[%emt 0:00:15]} Kd6 {[%emt 0:00:07]} 36. Kc4 {[%emt 0:00:37]} Kc6 {[%emt 0:00:10]} 37. h3 {[%emt 0:01:16]} b5+ {[%emt 0:01:37]} 38. Kb4 {[%emt 0:00:42]} Kd5 {[%emt 0:00:27]} 39. Kxb5 {[%emt 0:00:10]} Kxd4 {[%emt 0:00:07]} 40. g3 {[%emt 0:00:40]} Ke4 {[%emt 0:00:55]} 41. Kc6 {[%emt 0:30:08]} Kf3 {[%emt 0:30:26]} 42. Kd6 {[%emt 0:00:14]} Kxg3 {[%emt 0:00:21]} 43. Kxe6 {[%emt 0:00:07]} Kxf4 {[%emt 0:00:12]} 44. Kf6 {[%emt 0:00:10]} Kg3 {[%emt 0:00:11] normal} 0-1

[Event "GER-ch Youth U16w 2019"]
[Site "Willingen"]
[Date "2019.06.15"]
[Round "9.8"]
[White "Rudolph, Eva"]
[Black "Zell, Hannah"]
[Result "0-1"]
[ECO "C44"]
[WhiteElo "1786"]
[BlackElo "1473"]
[Annotator "NA"]
[PlyCount "110"]
[EventDate "2019.06.07"]
[EventType "swiss"]
[EventRounds "9"]
[EventCountry "GER"]
[SourceTitle "playchess.com"]
[Source "ChessBase"]
[SourceQuality "1"]
[TimeControl "40/5400+30:1800+30"]

1. e4 {[%emt 0:00:00]} e5 {[%emt 0:00:00]} 2. Nf3 {[%emt 0:00:00]} Nc6 {[%emt 0:00:00]} 3. Bc4 {[%emt 0:00:00]} Bc5 {[%emt 0:00:01]} 4. O-O {[%emt 0:00:09]} d6 {[%emt 0:00:45]} 5. c3 {[%emt 0:02:00]} Bg4 {[%emt 0:03:42]} 6. d4 {[%emt 0:08:59]} exd4 {[%emt 0:07:50]} 7. Bxf7+ {[%emt 0:02:34]} Kxf7 {[%emt 0:02:06]} 8. Ng5+ {[%emt 0:00:15]} Qxg5 {[%emt 0:00:58]} 9. Qb3+ {[%emt 0:09:21]} Be6 {[%emt 0:05:00]} 10. Qxb7 {[%emt 0:02:14]} Qd8 {[%emt 0:06:40]} 11. Qxc6 {[%emt 0:00:22]} Ne7 {[%emt 0:00:49]} 12. Qa4 {[%emt 0:01:33]} dxc3 {[%emt 0:02:04]} 13. Nxc3 {[%emt 0:00:17]} Rf8 {[%emt 0:02:19]} 14. Bg5 {[%emt 0:01:53]} Qe8 {[%emt 0:02:42]} 15. Qc2 {[%emt 0:03:49]} Kg8 {[%emt 0:03:54]} 16. Rac1 {[%emt 0:06:03]} Bc4 {[%emt 0:10:08]} 17. Ne2 {[%emt 0:01:15]} Bxe2 {[%emt 0:03:17]} 18. Qxe2 {[%emt 0:01:05]} Ng6 {[%emt 0:03:44]} 19. Kh1 {[%emt 0:04:39]} Nf4 {[%emt 0:05:22]} 20. Qf3 {[%emt 0:06:51]} Ne6 {[%emt 0:04:52]} 21. Qb3 {[%emt 0:06:04]} Rb8 {[%emt 0:01:24]} 22. Qc4 {[%emt 0:02:22]} Rb4 {[%emt 0:06:39]} 23. Qd5 {[%emt 0:01:27]} c6 {[%emt 0:03:05]} 24. Qd2 {[%emt 0:01:06]} Rd4 {[%emt 0:01:57]} 25. Qe3 {[%emt 0:00:41]} Nxg5 {[%emt 0:00:54]} 26. Qxg5 {[%emt 0:00:15]} Rxe4 {[%emt 0:00:10]} 27. f3 {[%emt 0:02:01]} Re2 {[%emt 0:03:17]} 28. Rb1 {[%emt 0:00:36]} a5 {[%emt 0:00:48]} 29. Qg3 {[%emt 0:00:42]} Qe5 {[%emt 0:01:08]} 30. Qh4 {[%emt 0:02:35]} Rb8 {[%emt 0:05:51]} 31. Rfe1 {[%emt 0:02:09]} Rbxb2 {[%emt 0:04:34]} 32. Qd8+ {[%emt 0:03:26]} Kf7 {[%emt 0:00:15]} 33. Qd7+ {[%emt 0:00:43]} Kf6 {[%emt 0:01:55]} 34. Qd8+ {[%emt 0:01:16]} Kg6 {[%emt 0:00:10]} 35. Qxa5 {[%emt 0:00:56]} Bf2 {[%emt 0:03:59]} 36. Qxe5 {[%emt 0:01:17]} dxe5 {[%emt 0:00:09]} 37. Red1 {[%emt 0:00:28]} Rxb1 {[%emt 0:00:10]} 38. Rxb1 {[%emt 0:00:02]} Re1+ {[%emt 0:00:12]} 39. Rxe1 {[%emt 0:00:01]} Bxe1 {[%emt 0:00:09]} 40. Kg1 {[%emt 0:00:15]} c5 {[%emt 0:00:45]} 41. Kf1 {[%emt 0:30:15]} Ba5 {[%emt 0:30:11]} 42. Ke2 {[%emt 0:00:07]} c4 {[%emt 0:00:08]} 43. Ke3 {[%emt 0:00:14]} c3 {[%emt 0:00:17]} 44. Kd3 {[%emt 0:00:09]} Kf6 {[%emt 0:00:28]} 45. Kc2 {[%emt 0:00:14]} g5 {[%emt 0:00:31]} 46. Kd3 {[%emt 0:01:30]} h5 {[%emt 0:00:48]} 47. h3 {[%emt 0:00:25]} h4 {[%emt 0:00:11]} 48. Kc2 {[%emt 0:00:20]} Kf5 {[%emt 0:00:29]} 49. Kd3 {[%emt 0:00:06]} Kf4 {[%emt 0:00:26]} 50. Kc2 {[%emt 0:00:14]} Ke3 {[%emt 0:00:27]} 51. a3 {[%emt 0:00:12]} e4 {[%emt 0:00:48]} 52. fxe4 {[%emt 0:00:14]} Kxe4 {[%emt 0:00:06]} 53. a4 {[%emt 0:00:23]} Kd4 {[%emt 0:00:14]} 54. Kc1 {[%emt 0:00:58]} Kd3 {[%emt 0:00:26]} 55. Kd1 {[%emt 0:00:42]} Bb6 {[%emt 0:00:14] normal} 0-1